{"text_format":"3","workbook":"xlsx","n_sheets":4,"sheets":["Движение денежных средств","Доходы за месяц","Расходы за месяц","ДАННЫЕ ДИАГРАММЫ"],"not_rendered":{"charts":1,"defined_names":10},"read":"whole","date_system":"1900"}

{"sheet":"Движение денежных средств","index":0,"n_rows":9,"n_cols":5,"rows_kept":9}
[null,"Имя"]
[null,"Семейный бюджет"]
[null,{"$f":"TEXT(TODAY(),\"ММММ\")","v":"Январь"}]
[null,{"$f":"YEAR(TODAY())","v":2017}]
[null,"Примечание. Данные в таблице движения денежных средств автоматически рассчитываются на основе записей в таблицах \"Доходы за месяц\" и \"Расходы за месяц\"."]
[null,"Движение денежных средств","Прогнозируемые","Фактические","Отклонение"]
[null,"Общие доходы",{"$f":"Доходы[[#Totals],[Прогнозируемые]]","v":{"v":57000,"d":"57,000"}},{"$f":"Доходы[[#Totals],[Фактические]]","v":{"v":55000,"d":"55,000"}},{"$f":"Доходы[[#Totals],[Отклонение]]","v":{"v":-2000,"d":"-2,000"}}]
[null,"Общие расходы",{"$f":"Расходы[[#Totals],[Прогнозируемые]]","v":{"v":35730,"d":"35,730"}},{"$f":"Расходы[[#Totals],[Фактические]]","v":{"v":36550,"d":"36,550"}},{"$f":"Расходы[[#Totals],[Отклонение]]","v":-820}]
[null,"Итого денежных средств",{"$f":"C7-C8","v":{"v":21270,"d":"21,270"}},{"$f":"D7-D8","v":{"v":18450,"d":"18,450"}},{"$f":"SUBTOTAL(109,Движение_денежных_средств[Отклонение])","v":{"v":-2820,"d":"-2,820"}}]

{"sheet":"Доходы за месяц","index":1,"n_rows":9,"n_cols":5,"rows_kept":9}
[null,{"$f":"Имя","v":"Имя"}]
[null,{"$f":"BudgetTitle","v":"Семейный бюджет"}]
[null,{"$f":"Месяц","v":"Январь"}]
[null,{"$f":"Год","v":2017}]
[null,"Доходы за месяц","Прогнозируемые","Фактические","Отклонение"]
[null,"Доход 1",{"v":40000,"d":"40,000"},{"v":40000,"d":"40,000"},{"$f":"Доходы[[#This Row],[Фактические]]-Доходы[[#This Row],[Прогнозируемые]]","v":0}]
[null,"Доход 2",{"v":14000,"d":"14,000"},{"v":15000,"d":"15,000"},{"$f":"Доходы[[#This Row],[Фактические]]-Доходы[[#This Row],[Прогнозируемые]]","v":{"v":1000,"d":"1,000"}}]
[null,"Другие доходы",{"v":3000,"d":"3,000"},0,{"$f":"Доходы[[#This Row],[Фактические]]-Доходы[[#This Row],[Прогнозируемые]]","v":{"v":-3000,"d":"-3,000"}}]
[null,"Общие доходы",{"$f":"SUBTOTAL(109,Доходы[Прогнозируемые])","v":{"v":57000,"d":"57,000"}},{"$f":"SUBTOTAL(109,Доходы[Фактические])","v":{"v":55000,"d":"55,000"}},{"$f":"SUBTOTAL(109,Доходы[Отклонение])","v":{"v":-2000,"d":"-2,000"}}]

{"sheet":"Расходы за месяц","index":2,"n_rows":26,"n_cols":5,"rows_kept":26}
[null,{"$f":"Имя","v":"Имя"}]
[null,{"$f":"BudgetTitle","v":"Семейный бюджет"}]
[null,{"$f":"Месяц","v":"Январь"}]
[null,{"$f":"Год","v":2017}]
[null,"Расходы за месяц","Прогнозируемые","Фактические","Отклонение"]
[null,"Жилье",{"v":15000,"d":"15,000"},{"v":15000,"d":"15,000"},{"$f":"Расходы[[#This Row],[Прогнозируемые]]-Расходы[[#This Row],[Фактические]]","v":0}]
[null,"Продукты",{"v":2500,"d":"2,500"},{"v":2800,"d":"2,800"},{"$f":"Расходы[[#This Row],[Прогнозируемые]]-Расходы[[#This Row],[Фактические]]","v":-300}]
[null,"Телефонная связь",380,380,{"$f":"Расходы[[#This Row],[Прогнозируемые]]-Расходы[[#This Row],[Фактические]]","v":0}]
[null,"Электричество, газ",650,780,{"$f":"Расходы[[#This Row],[Прогнозируемые]]-Расходы[[#This Row],[Фактические]]","v":-130}]
[null,"Водоснабжение, водоотведение, вывоз мусора",250,210,{"$f":"Расходы[[#This Row],[Прогнозируемые]]-Расходы[[#This Row],[Фактические]]","v":40}]
[null,"Кабельное ТВ",750,830,{"$f":"Расходы[[#This Row],[Прогнозируемые]]-Расходы[[#This Row],[Фактические]]","v":-80}]
[null,"Интернет",600,600,{"$f":"Расходы[[#This Row],[Прогнозируемые]]-Расходы[[#This Row],[Фактические]]","v":0}]
[null,"Ремонт, техническое обслуживание",0,600,{"$f":"Расходы[[#This Row],[Прогнозируемые]]-Расходы[[#This Row],[Фактические]]","v":-600}]
[null,"Уход за ребенком",{"v":1800,"d":"1,800"},{"v":1500,"d":"1,500"},{"$f":"Расходы[[#This Row],[Прогнозируемые]]-Расходы[[#This Row],[Фактические]]","v":300}]
[null,"Обучение",{"v":2500,"d":"2,500"},{"v":2500,"d":"2,500"},{"$f":"Расходы[[#This Row],[Прогнозируемые]]-Расходы[[#This Row],[Фактические]]","v":0}]
[null,"Домашние животные",750,800,{"$f":"Расходы[[#This Row],[Прогнозируемые]]-Расходы[[#This Row],[Фактические]]","v":-50}]
[null,"Транспорт",{"v":2500,"d":"2,500"},{"v":2600,"d":"2,600"},{"$f":"Расходы[[#This Row],[Прогнозируемые]]-Расходы[[#This Row],[Фактические]]","v":-100}]
[null,"Предметы личной гигиены",750,650,{"$f":"Расходы[[#This Row],[Прогнозируемые]]-Расходы[[#This Row],[Фактические]]","v":100}]
[null,"Страхование",{"v":2550,"d":"2,550"},{"v":2550,"d":"2,550"},{"$f":"Расходы[[#This Row],[Прогнозируемые]]-Расходы[[#This Row],[Фактические]]","v":0}]
[null,"Кредитные карты",{"v":1000,"d":"1,000"},{"v":1000,"d":"1,000"},{"$f":"Расходы[[#This Row],[Прогнозируемые]]-Расходы[[#This Row],[Фактические]]","v":0}]
[null,"Кредиты",0,0,{"$f":"Расходы[[#This Row],[Прогнозируемые]]-Расходы[[#This Row],[Фактические]]","v":0}]
[null,"Налоги",0,0,{"$f":"Расходы[[#This Row],[Прогнозируемые]]-Расходы[[#This Row],[Фактические]]","v":0}]
[null,"Подарки, благотворительность",{"v":1500,"d":"1,500"},{"v":1500,"d":"1,500"},{"$f":"Расходы[[#This Row],[Прогнозируемые]]-Расходы[[#This Row],[Фактические]]","v":0}]
[null,"Сбережения",{"v":2250,"d":"2,250"},{"v":2250,"d":"2,250"},{"$f":"Расходы[[#This Row],[Прогнозируемые]]-Расходы[[#This Row],[Фактические]]","v":0}]
[null,"Другое",0,0,{"$f":"Расходы[[#This Row],[Прогнозируемые]]-Расходы[[#This Row],[Фактические]]","v":0}]
[null,"Итого",{"$f":"SUBTOTAL(109,Расходы[Прогнозируемые])","v":{"v":35730,"d":"35,730"}},{"$f":"SUBTOTAL(109,Расходы[Фактические])","v":{"v":36550,"d":"36,550"}},{"$f":"SUBTOTAL(109,Расходы[Отклонение])","v":-820}]

{"sheet":"ДАННЫЕ ДИАГРАММЫ","index":3,"n_rows":6,"n_cols":4,"rows_kept":6,"hidden":true}
[null,"ДАННЫЕ ДИАГРАММЫ"]
[]
[null,null,"Прогнозируемые","Фактические"]
[null,"Движение денежных средств",{"$f":"Движение_денежных_средств[[#Totals],[Прогнозируемые]]","v":21270},{"$f":"Движение_денежных_средств[[#Totals],[Фактические]]","v":18450}]
[null,"Доходы за месяц",{"$f":"Доходы[[#Totals],[Прогнозируемые]]","v":57000},{"$f":"Доходы[[#Totals],[Фактические]]","v":55000}]
[null,"Расходы за месяц",{"$f":"Расходы[[#Totals],[Прогнозируемые]]","v":35730},{"$f":"Расходы[[#Totals],[Фактические]]","v":36550}]